[Event "*** Titled Tuesday 3|2 Blitz (Late)"]
[Site "Chess.com"]
[Date "2017.01.03"]
[Round "7"]
[White "boredoldman"]
[Black "iturrizaga"]
[Result "1-0"]
[WhiteElo "2534"]
[BlackElo "2681"]
[TimeControl "180+2"]
[EndTime "18:23:10 PST"]
[Termination "boredoldman won on time"]

1. e4 {[%clk 0:03:02]} 1... c5 {[%clk 0:02:56.7]} 2. b4 {[%clk 0:03:02.8]} 2...
d6 {[%clk 0:02:51.6]} 3. bxc5 {[%clk 0:03:03.6]} 3... dxc5 {[%clk 0:02:52.9]} 4.
Nc3 {[%clk 0:03:05.5]} 4... Nc6 {[%clk 0:02:54.1]} 5. Bb5 {[%clk 0:03:05.8]}
5... Bd7 {[%clk 0:02:55.3]} 6. Nf3 {[%clk 0:02:46.6]} 6... g6 {[%clk 0:02:56.3]}
7. Ba3 {[%clk 0:02:45.2]} 7... b6 {[%clk 0:02:49.1]} 8. O-O {[%clk 0:02:43.8]}
8... Bg7 {[%clk 0:02:49.7]} 9. Rb1 {[%clk 0:02:45.4]} 9... e6 {[%clk 0:02:35]}
10. e5 {[%clk 0:02:45.9]} 10... Nxe5 {[%clk 0:02:31.9]} 11. Nxe5 {[%clk
0:02:44]} 11... Bxe5 {[%clk 0:02:30.9]} 12. Bxd7+ {[%clk 0:02:44.9]} 12... Qxd7
{[%clk 0:02:30.2]} 13. Qf3 {[%clk 0:02:46.8]} 13... Rd8 {[%clk 0:02:28.4]} 14.
Rfe1 {[%clk 0:02:39.8]} 14... Bd4 {[%clk 0:02:01.1]} 15. Nb5 {[%clk 0:02:34.9]}
15... Bg7 {[%clk 0:01:45.6]} 16. c3 {[%clk 0:02:31.2]} 16... a6 {[%clk
0:01:32.2]} 17. Nd4 {[%clk 0:02:28.9]} 17... cxd4 {[%clk 0:01:04.2]} 18. Rxb6
{[%clk 0:02:30]} 18... Qd5 {[%clk 0:01:00.3]} 19. Qxd5 {[%clk 0:02:30.9]} 19...
Rxd5 {[%clk 0:01:00.7]} 20. c4 {[%clk 0:02:32.8]} 20... Rd8 {[%clk 0:00:57.7]}
21. Rxa6 {[%clk 0:02:34.3]} 21... Bf8 {[%clk 0:00:56.5]} 22. Bxf8 {[%clk
0:02:29.6]} 22... Kxf8 {[%clk 0:00:57.1]} 23. a4 {[%clk 0:02:31.5]} 23... Kg7
{[%clk 0:00:57.8]} 24. Ra7 {[%clk 0:02:29.8]} 24... Kf6 {[%clk 0:00:52.8]} 25.
g4 {[%clk 0:02:24.4]} 25... g5 {[%clk 0:00:49.2]} 26. a5 {[%clk 0:02:23.5]}
26... Ne7 {[%clk 0:00:48.5]} 27. f4 {[%clk 0:02:22.8]} 27... Nc6 {[%clk
0:00:43.8]} 28. fxg5+ {[%clk 0:02:20.3]} 28... Kg6 {[%clk 0:00:45]} 29. Ra6
{[%clk 0:02:19.5]} 29... Nb4 {[%clk 0:00:45.6]} 30. Rb6 {[%clk 0:02:19.3]} 30...
Nd3 {[%clk 0:00:45.7]} 31. Ra1 {[%clk 0:02:20.1]} 31... Rb8 {[%clk 0:00:33.7]}
32. Rb5 {[%clk 0:02:18]} 32... Rhc8 {[%clk 0:00:32.6]} 33. a6 {[%clk 0:02:17.4]}
33... Ra8 {[%clk 0:00:33.1]} 34. a7 {[%clk 0:02:17.5]} 34... Rc7 {[%clk
0:00:34.2]} 35. Rb8 {[%clk 0:02:14.6]} 35... Rcxa7 {[%clk 0:00:13.7]} 36. Rxa8
{[%clk 0:02:13.6]} 36... Rxa8 {[%clk 0:00:15.2]} 37. Rxa8 {[%clk 0:02:14.4]}
37... Kxg5 {[%clk 0:00:16.7]} 38. c5 {[%clk 0:02:14]} 38... Ne5 {[%clk
0:00:14.5]} 39. h3 {[%clk 0:02:13.7]} 39... Kf4 {[%clk 0:00:14.6]} 40. Kh2
{[%clk 0:02:15]} 40... d3 {[%clk 0:00:14.3]} 41. Rh8 {[%clk 0:02:14.4]} 41...
Ke4 {[%clk 0:00:04.1]} 42. Rxh7 {[%clk 0:02:12.3]} 42... Kd5 {[%clk 0:00:05.4]}
43. Rh5 {[%clk 0:02:13.7]} 43... f6 {[%clk 0:00:03.3]} 44. g5 {[%clk 0:02:07.7]}
1-0

[Event "*** Titled Tuesday 3|2 Blitz (Late)"]
[Site "Chess.com"]
[Date "2017.01.03"]
[Round "7"]
[White "josiwales"]
[Black "MFBerna"]
[Result "0-1"]
[WhiteElo "2230"]
[BlackElo "2227"]
[TimeControl "180+2"]
[EndTime "18:23:32 PST"]
[Termination "MFBerna won by resignation"]

1. e4 {[%clk 0:02:45.4]} 1... c5 {[%clk 0:03:00.3]} 2. Nc3 {[%clk 0:02:44.7]}
2... d6 {[%clk 0:03:00.7]} 3. g3 {[%clk 0:02:46.1]} 3... Nf6 {[%clk 0:03:00.8]}
4. Bg2 {[%clk 0:02:47.7]} 4... e5 {[%clk 0:03:01]} 5. d3 {[%clk 0:02:49.2]} 5...
Be7 {[%clk 0:03:01.7]} 6. f4 {[%clk 0:02:49.9]} 6... Nc6 {[%clk 0:03:02.5]} 7.
f5 {[%clk 0:02:51.2]} 7... d5 {[%clk 0:02:51.3]} 8. Bg5 {[%clk 0:02:32]} 8...
Nxe4 {[%clk 0:02:26.4]} 9. Bxe7 {[%clk 0:02:31.1]} 9... Nxc3 {[%clk 0:02:25]}
10. Bxd8 {[%clk 0:02:31.3]} 10... Nxd1 {[%clk 0:02:25.1]} 11. Rxd1 {[%clk
0:02:30.4]} 11... Nxd8 {[%clk 0:02:15.4]} 12. Bxd5 {[%clk 0:02:31]} 12... Bxf5
{[%clk 0:02:16.2]} 13. Ne2 {[%clk 0:02:30.8]} 13... Be6 {[%clk 0:02:12.9]} 14.
Nc3 {[%clk 0:02:24.7]} 14... O-O {[%clk 0:02:03.5]} 15. O-O {[%clk 0:02:19.9]}
15... Bxd5 {[%clk 0:02:02.1]} 16. Nxd5 {[%clk 0:02:19.8]} 16... Nc6 {[%clk
0:02:02.7]} 17. Rfe1 {[%clk 0:02:16.8]} 17... Rad8 {[%clk 0:02:02]} 18. c4
{[%clk 0:02:17.6]} 18... f6 {[%clk 0:02:00.9]} 19. a3 {[%clk 0:02:14]} 19... Kf7
{[%clk 0:01:59.6]} 20. b4 {[%clk 0:02:12.8]} 20... Nd4 {[%clk 0:01:52]} 21. Kf2
{[%clk 0:02:03.8]} 21... cxb4 {[%clk 0:01:52.6]} 22. axb4 {[%clk 0:02:04]} 22...
a6 {[%clk 0:01:48.8]} 23. Rd2 {[%clk 0:02:01.8]} 23... Rfe8 {[%clk 0:01:45]} 24.
g4 {[%clk 0:01:56.4]} 24... g6 {[%clk 0:01:41.3]} 25. Ra2 {[%clk 0:01:48.4]}
25... Re6 {[%clk 0:01:36.2]} 26. Ke3 {[%clk 0:01:48.9]} 26... f5 {[%clk
0:01:28.1]} 27. gxf5 {[%clk 0:01:48.1]} 27... gxf5 {[%clk 0:01:30]} 28. Rg1
{[%clk 0:01:39.8]} 28... Rg6 {[%clk 0:01:26.9]} 29. Rxg6 {[%clk 0:01:37.1]}
29... hxg6 {[%clk 0:01:26.9]} 30. Ra5 {[%clk 0:01:38.2]} 30... Rh8 {[%clk
0:01:21.7]} 31. Rc5 {[%clk 0:01:27.7]} 31... Rh3+ {[%clk 0:01:19.5]} 32. Kf2
{[%clk 0:01:28.3]} 32... Rxh2+ {[%clk 0:01:04.2]} 33. Kg3 {[%clk 0:01:29]} 33...
Rd2 {[%clk 0:00:58.7]} 34. Rc7+ {[%clk 0:01:29.4]} 34... Ke6 {[%clk 0:00:55.1]}
35. Rxb7 {[%clk 0:01:23.9]} 35... f4+ {[%clk 0:00:49.2]} 36. Kh4 {[%clk
0:01:19.7]} 36... Nf3+ {[%clk 0:00:42.6]} 37. Kg4 {[%clk 0:01:20.2]} 37... Nh2+
{[%clk 0:00:39.6]} 38. Kg5 {[%clk 0:01:21.2]} 38... f3 {[%clk 0:00:27.8]} 39.
Rf7 {[%clk 0:00:59.8]} 39... Kxf7 {[%clk 0:00:26.5]} 0-1

[Event "*** Titled Tuesday 3|2 Blitz (Late)"]
[Site "Chess.com"]
[Date "2017.01.03"]
[Round "7"]
[White "Kawhi_Leonard2"]
[Black "SabinaFoisor"]
[Result "1-0"]
[WhiteElo "2205"]
[BlackElo "2203"]
[TimeControl "180+2"]
[EndTime "18:24:08 PST"]
[Termination "Kawhi_Leonard2 won by checkmate"]

1. e4 {[%clk 0:03:02]} 1... e5 {[%clk 0:03:00.4]} 2. Nf3 {[%clk 0:03:02.1]} 2...
Nc6 {[%clk 0:03:01]} 3. Bb5 {[%clk 0:03:00.5]} 3... a6 {[%clk 0:03:01.5]} 4.
Bxc6 {[%clk 0:03:01.5]} 4... dxc6 {[%clk 0:03:02]} 5. O-O {[%clk 0:03:02.5]}
5... Bg4 {[%clk 0:02:56.9]} 6. h3 {[%clk 0:03:02.7]} 6... h5 {[%clk 0:02:57.2]}
7. d3 {[%clk 0:03:03.3]} 7... Qf6 {[%clk 0:02:56.4]} 8. Nbd2 {[%clk 0:03:04.7]}
8... Qg6 {[%clk 0:02:45.1]} 9. Nxe5 {[%clk 0:02:56.2]} 9... Qe6 {[%clk
0:02:14.9]} 10. Nxg4 {[%clk 0:02:55.9]} 10... hxg4 {[%clk 0:02:13.7]} 11. Qxg4
{[%clk 0:02:56.6]} 11... Qxg4 {[%clk 0:02:08]} 12. hxg4 {[%clk 0:02:56.8]} 12...
Nf6 {[%clk 0:02:08.3]} 13. g5 {[%clk 0:02:41.4]} 13... Ng4 {[%clk 0:02:05.5]}
14. Nf3 {[%clk 0:02:42.3]} 14... Bd6 {[%clk 0:02:01.6]} 15. g3 {[%clk
0:02:42.3]} 15... O-O-O {[%clk 0:01:45.4]} 16. Kg2 {[%clk 0:02:41.9]} 16... f6
{[%clk 0:01:45.4]} 17. Bd2 {[%clk 0:02:24.1]} 17... Bc5 {[%clk 0:01:39.8]} 18.
Bc3 {[%clk 0:02:08.4]} 18... Rh5 {[%clk 0:01:27.7]} 19. gxf6 {[%clk 0:02:01.1]}
19... gxf6 {[%clk 0:01:27.6]} 20. d4 {[%clk 0:02:00.5]} 20... Be7 {[%clk
0:01:23.5]} 21. Rh1 {[%clk 0:02:01]} 21... Rdh8 {[%clk 0:01:22.4]} 22. Rxh5
{[%clk 0:01:59.3]} 22... Rxh5 {[%clk 0:01:24.3]} 23. Nh4 {[%clk 0:01:57.5]}
23... b5 {[%clk 0:01:18.6]} 24. Rh1 {[%clk 0:01:48.7]} 24... b4 {[%clk
0:01:08.1]} 25. Bd2 {[%clk 0:01:49.7]} 25... c5 {[%clk 0:01:02.8]} 26. f3 {[%clk
0:01:48.4]} 26... Nh6 {[%clk 0:01:02.5]} 27. g4 {[%clk 0:01:42.4]} 27... Nxg4
{[%clk 0:00:33.7]} 28. fxg4 {[%clk 0:01:42]} 28... Rh7 {[%clk 0:00:34.2]} 29.
Nf5 {[%clk 0:01:40.1]} 29... Rf7 {[%clk 0:00:29.6]} 30. d5 {[%clk 0:01:32.1]}
30... Bf8 {[%clk 0:00:24.6]} 31. Kf3 {[%clk 0:01:31.8]} 31... Kb7 {[%clk
0:00:24.6]} 32. c4 {[%clk 0:01:24.9]} 32... c6 {[%clk 0:00:19.7]} 33. b3 {[%clk
0:01:24.4]} 33... cxd5 {[%clk 0:00:20.1]} 34. exd5 {[%clk 0:01:22.1]} 34... a5
{[%clk 0:00:21.3]} 35. Re1 {[%clk 0:01:19.7]} 35... Kc7 {[%clk 0:00:22.1]} 36.
Re6 {[%clk 0:01:18.6]} 36... Kd7 {[%clk 0:00:21.6]} 37. Ra6 {[%clk 0:01:16.9]}
37... Kc8 {[%clk 0:00:17]} 38. Rxa5 {[%clk 0:01:13.2]} 38... Rh7 {[%clk
0:00:18.1]} 39. Bf4 {[%clk 0:01:07.1]} 39... Rh1 {[%clk 0:00:15.5]} 40. Ra8+
{[%clk 0:01:05.7]} 40... Kb7 {[%clk 0:00:16.9]} 41. Rxf8 {[%clk 0:01:06.1]}
41... Rf1+ {[%clk 0:00:18.7]} 42. Kg3 {[%clk 0:01:03.4]} 42... Ra1 {[%clk
0:00:18.5]} 43. Rxf6 {[%clk 0:01:00.3]} 43... Rxa2 {[%clk 0:00:19.1]} 44. g5
{[%clk 0:00:56.8]} 44... Rb2 {[%clk 0:00:20]} 45. g6 {[%clk 0:00:57.7]} 45...
Rxb3+ {[%clk 0:00:21.4]} 46. Kg4 {[%clk 0:00:58.8]} 46... Rb1 {[%clk 0:00:19.6]}
47. g7 {[%clk 0:00:59.7]} 47... Rg1+ {[%clk 0:00:20.4]} 48. Bg3 {[%clk
0:01:00.7]} 48... b3 {[%clk 0:00:20.4]} 49. g8=Q {[%clk 0:01:01.2]} 49... b2
{[%clk 0:00:22.3]} 50. Qg7+ {[%clk 0:01:01.2]} 50... Ka8 {[%clk 0:00:22.4]} 51.
Rf8# {[%clk 0:01:01.7]} 1-0

[Event "*** Titled Tuesday 3|2 Blitz (Late)"]
[Site "Chess.com"]
[Date "2017.01.03"]
[Round "7"]
[White "Dr-Bassem"]
[Black "pKiLz5Rn9b"]
[Result "0-1"]
[WhiteElo "2636"]
[BlackElo "2488"]
[TimeControl "180+2"]
[EndTime "18:24:14 PST"]
[Termination "pKiLz5Rn9b won on time"]

1. e4 {[%clk 0:03:02]} 1... e6 {[%clk 0:03:01.5]} 2. d3 {[%clk 0:03:03]} 2... d5
{[%clk 0:03:03.2]} 3. Nd2 {[%clk 0:03:04.6]} 3... Nf6 {[%clk 0:03:04.8]} 4. Ngf3
{[%clk 0:03:05.8]} 4... Be7 {[%clk 0:03:06.4]} 5. g3 {[%clk 0:03:07]} 5... b5
{[%clk 0:03:07.8]} 6. Bg2 {[%clk 0:03:07.5]} 6... c5 {[%clk 0:03:09.1]} 7. O-O
{[%clk 0:03:08.4]} 7... Nc6 {[%clk 0:03:10.3]} 8. Re1 {[%clk 0:03:09.9]} 8...
O-O {[%clk 0:03:10.8]} 9. e5 {[%clk 0:03:11]} 9... Nd7 {[%clk 0:03:11.8]} 10.
Nf1 {[%clk 0:03:12.7]} 10... b4 {[%clk 0:03:10.8]} 11. h4 {[%clk 0:02:18.2]}
11... Re8 {[%clk 0:03:11.3]} 12. N1h2 {[%clk 0:02:16.7]} 12... a5 {[%clk
0:03:12.5]} 13. Bf4 {[%clk 0:02:12.8]} 13... h6 {[%clk 0:03:12.3]} 14. Qd2
{[%clk 0:02:11.1]} 14... Bf8 {[%clk 0:03:13.7]} 15. Ng4 {[%clk 0:02:12]} 15...
Kh7 {[%clk 0:03:15]} 16. c3 {[%clk 0:02:00.3]} 16... Ba6 {[%clk 0:03:11.6]} 17.
Qc2 {[%clk 0:01:52.4]} 17... Kh8 {[%clk 0:02:59.8]} 18. c4 {[%clk 0:01:42.9]}
18... Rc8 {[%clk 0:02:45]} 19. Rad1 {[%clk 0:01:41.3]} 19... Nd4 {[%clk
0:02:38.4]} 20. Nxd4 {[%clk 0:01:41.5]} 20... cxd4 {[%clk 0:02:40.3]} 21. b3
{[%clk 0:01:42.9]} 21... Bb7 {[%clk 0:02:27.3]} 22. Qb2 {[%clk 0:01:38.1]} 22...
Qb6 {[%clk 0:02:25.3]} 23. Qd2 {[%clk 0:01:18.1]} 23... Kh7 {[%clk 0:02:23.8]}
24. Rc1 {[%clk 0:01:17.6]} 24... a4 {[%clk 0:02:21.9]} 25. Qe2 {[%clk
0:00:53.2]} 25... axb3 {[%clk 0:01:53.4]} 26. axb3 {[%clk 0:00:55.1]} 26... dxc4
{[%clk 0:01:43.7]} 27. dxc4 {[%clk 0:00:52.6]} 27... Bxg2 {[%clk 0:01:42.8]} 28.
Kxg2 {[%clk 0:00:54.5]} 28... Qb7+ {[%clk 0:01:35.2]} 29. Kg1 {[%clk 0:00:47.4]}
29... Nc5 {[%clk 0:01:36.2]} 30. Rcd1 {[%clk 0:00:26.1]} 30... Rcd8 {[%clk
0:01:31.4]} 31. Bxh6 {[%clk 0:00:24.5]} 31... gxh6 {[%clk 0:01:32.2]} 32. Nf6+
{[%clk 0:00:25.3]} 32... Kh8 {[%clk 0:01:33.6]} 33. Qg4 {[%clk 0:00:16.3]} 33...
Bg7 {[%clk 0:01:30.9]} 34. Nxe8 {[%clk 0:00:15.1]} 34... Rxe8 {[%clk 0:01:31.3]}
35. Rxd4 {[%clk 0:00:16.3]} 35... Nxb3 {[%clk 0:01:27.4]} 36. Rf4 {[%clk
0:00:16.9]} 36... Nc5 {[%clk 0:01:28.8]} 37. Qh5 {[%clk 0:00:17]} 37... Kg8
{[%clk 0:01:24.9]} 38. Rg4 {[%clk 0:00:18.3]} 38... Kf8 {[%clk 0:01:26.3]} 39.
Rd1 {[%clk 0:00:06.5]} 39... b3 {[%clk 0:01:23.8]} 40. Rf4 {[%clk 0:00:07.8]}
40... b2 {[%clk 0:01:19.9]} 41. Qg6 {[%clk 0:00:09]} 41... Kg8 {[%clk
0:01:19.6]} 42. Qc2 {[%clk 0:00:06.1]} 42... Qb3 {[%clk 0:01:15.3]} 0-1

[Event "*** Titled Tuesday 3|2 Blitz (Late)"]
[Site "Chess.com"]
[Date "2017.01.03"]
[Round "7"]
[White "MattyDPerrine"]
[Black "norwaytoadog"]
[Result "1-0"]
[WhiteElo "2237"]
[BlackElo "1966"]
[TimeControl "180+2"]
[EndTime "18:24:41 PST"]
[Termination "MattyDPerrine won by checkmate"]

1. d4 {[%clk 0:03:02]} 1... Nf6 {[%clk 0:02:59.3]} 2. Nf3 {[%clk 0:03:03]} 2...
e6 {[%clk 0:02:59]} 3. g3 {[%clk 0:02:59]} 3... c5 {[%clk 0:02:54.3]} 4. Bg2
{[%clk 0:02:59.7]} 4... Nc6 {[%clk 0:02:53.6]} 5. O-O {[%clk 0:02:59.6]} 5... b6
{[%clk 0:02:46.7]} 6. Bg5 {[%clk 0:02:50.4]} 6... Bb7 {[%clk 0:02:45.6]} 7. e4
{[%clk 0:02:31.8]} 7... Be7 {[%clk 0:02:42.3]} 8. d5 {[%clk 0:02:27.2]} 8... Nb8
{[%clk 0:02:09.6]} 9. d6 {[%clk 0:02:21.1]} 9... Bf8 {[%clk 0:02:09.7]} 10. e5
{[%clk 0:02:21.4]} 10... h6 {[%clk 0:02:10.1]} 11. Bh4 {[%clk 0:02:19.7]} 11...
g5 {[%clk 0:02:09.4]} 12. Nxg5 {[%clk 0:02:19.9]} 12... Bxg2 {[%clk 0:02:04.3]}
13. Kxg2 {[%clk 0:02:18]} 13... hxg5 {[%clk 0:02:04]} 14. Bxg5 {[%clk
0:02:19.9]} 14... Bg7 {[%clk 0:02:01.9]} 15. exf6 {[%clk 0:02:14.2]} 15... Bh6
{[%clk 0:01:53]} 16. f4 {[%clk 0:02:10.1]} 16... Nc6 {[%clk 0:01:50.6]} 17. Nc3
{[%clk 0:02:08.4]} 17... a6 {[%clk 0:01:47.4]} 18. a4 {[%clk 0:02:08.2]} 18...
Nd4 {[%clk 0:01:45.8]} 19. Ne4 {[%clk 0:02:01.8]} 19... Nf5 {[%clk 0:01:42.9]}
20. Qd3 {[%clk 0:01:55.9]} 20... Qc8 {[%clk 0:01:41.7]} 21. Kg1 {[%clk
0:01:41.9]} 21... Qc6 {[%clk 0:01:35.2]} 22. b3 {[%clk 0:01:33.9]} 22... Kd8
{[%clk 0:01:22]} 23. Rfe1 {[%clk 0:01:26.5]} 23... Kc8 {[%clk 0:01:19.1]} 24. a5
{[%clk 0:01:23.9]} 24... b5 {[%clk 0:01:11.7]} 25. Qc3 {[%clk 0:01:17.4]} 25...
Nd4 {[%clk 0:00:59.1]} 26. h4 {[%clk 0:00:55.1]} 26... Bxg5 {[%clk 0:00:54.9]}
27. fxg5 {[%clk 0:00:49.8]} 27... e5 {[%clk 0:00:52]} 28. Kf2 {[%clk 0:00:45.9]}
28... c4 {[%clk 0:00:50.3]} 29. bxc4 {[%clk 0:00:39]} 29... bxc4 {[%clk
0:00:50.9]} 30. Rab1 {[%clk 0:00:38.4]} 30... Rb8 {[%clk 0:00:49.8]} 31. Nd2
{[%clk 0:00:28.8]} 31... Rb5 {[%clk 0:00:33.1]} 32. Qxc4 {[%clk 0:00:13.1]}
32... Rc5 {[%clk 0:00:33.1]} 33. Qd3 {[%clk 0:00:11.7]} 33... Rxc2 {[%clk
0:00:32.6]} 34. Rxe5 {[%clk 0:00:10.8]} 34... Rxd2+ {[%clk 0:00:32.3]} 35. Qxd2
{[%clk 0:00:12.7]} 35... Qf3+ {[%clk 0:00:32.4]} 36. Kg1 {[%clk 0:00:08.7]}
36... Qxg3+ {[%clk 0:00:31.3]} 37. Qg2 {[%clk 0:00:09.6]} 37... Nf3+ {[%clk
0:00:25.1]} 38. Kf1 {[%clk 0:00:10.5]} 38... Nh2+ {[%clk 0:00:23.9]} 39. Kg1
{[%clk 0:00:11.1]} 39... Nf3+ {[%clk 0:00:23.4]} 40. Kf1 {[%clk 0:00:12.4]}
40... Nh2+ {[%clk 0:00:21.2]} 41. Qxh2 {[%clk 0:00:10.2]} 41... Qxh2 {[%clk
0:00:20.9]} 42. Rc5+ {[%clk 0:00:11.4]} 42... Kd8 {[%clk 0:00:14.6]} 43. Rb8#
{[%clk 0:00:13.3]} 1-0

[Event "*** Titled Tuesday 3|2 Blitz (Late)"]
[Site "Chess.com"]
[Date "2017.01.03"]
[Round "7"]
[White "AndrBaryshpolets"]
[Black "yian123"]
[Result "0-1"]
[WhiteElo "2448"]
[BlackElo "2399"]
[TimeControl "180+2"]
[EndTime "18:24:54 PST"]
[Termination "yian123 won by resignation"]

1. d4 {[%clk 0:03:02]} 1... d5 {[%clk 0:03:00.1]} 2. c4 {[%clk 0:03:03.2]} 2...
c6 {[%clk 0:02:59.1]} 3. Nf3 {[%clk 0:03:04]} 3... Nf6 {[%clk 0:02:59.5]} 4. Qc2
{[%clk 0:03:05.3]} 4... g6 {[%clk 0:02:56.4]} 5. Bf4 {[%clk 0:03:05.3]} 5... Bg7
{[%clk 0:02:56.4]} 6. e3 {[%clk 0:03:06.2]} 6... a6 {[%clk 0:02:56.9]} 7. Nc3
{[%clk 0:03:00.3]} 7... O-O {[%clk 0:02:56.4]} 8. h3 {[%clk 0:02:53.8]} 8... b5
{[%clk 0:02:50.7]} 9. cxd5 {[%clk 0:02:49.9]} 9... cxd5 {[%clk 0:02:49.5]} 10.
Be2 {[%clk 0:02:34.2]} 10... Bb7 {[%clk 0:02:49.4]} 11. a4 {[%clk 0:02:05.8]}
11... b4 {[%clk 0:02:41]} 12. Nb1 {[%clk 0:02:01.1]} 12... Nc6 {[%clk
0:02:39.7]} 13. Nbd2 {[%clk 0:01:55.4]} 13... Rc8 {[%clk 0:02:37.6]} 14. Qd3
{[%clk 0:01:36.1]} 14... Na5 {[%clk 0:02:36.8]} 15. Nb3 {[%clk 0:01:28.1]} 15...
Nc4 {[%clk 0:02:30.1]} 16. Nc5 {[%clk 0:01:26.4]} 16... Ba8 {[%clk 0:01:56]} 17.
b3 {[%clk 0:01:13.5]} 17... Ne4 {[%clk 0:01:54.7]} 18. Ra2 {[%clk 0:00:19.7]}
18... Nxc5 {[%clk 0:01:45]} 19. dxc5 {[%clk 0:00:21.6]} 19... Na5 {[%clk
0:01:45.9]} 20. Be5 {[%clk 0:00:18.2]} 20... Bxe5 {[%clk 0:01:39.8]} 21. Nxe5
{[%clk 0:00:20.1]} 21... Rxc5 {[%clk 0:01:40.4]} 22. O-O {[%clk 0:00:18.6]}
22... Qd6 {[%clk 0:01:37.7]} 23. Nf3 {[%clk 0:00:15.5]} 23... Bb7 {[%clk
0:01:35.9]} 24. Rb2 {[%clk 0:00:12]} 24... Rc3 {[%clk 0:01:34.2]} 25. Qd1 {[%clk
0:00:13]} 25... e5 {[%clk 0:01:34.8]} 26. Nd2 {[%clk 0:00:12.4]} 26... Qe7
{[%clk 0:01:25.4]} 27. e4 {[%clk 0:00:10.9]} 27... dxe4 {[%clk 0:01:23.3]} 28.
Nc4 {[%clk 0:00:11.7]} 28... Nc6 {[%clk 0:01:08.1]} 29. Qd6 {[%clk 0:00:09.6]}
29... Re8 {[%clk 0:00:57.5]} 30. Rd1 {[%clk 0:00:04.8]} 30... Nd4 {[%clk
0:00:54.3]} 31. Qb6 {[%clk 0:00:05.5]} 31... Ba8 {[%clk 0:00:33]} 32. Qxa6
{[%clk 0:00:03.2]} 32... Qg5 {[%clk 0:00:28.2]} 33. Ne3 {[%clk 0:00:02.8]} 33...
Nf5 {[%clk 0:00:20]} 34. Bc4 {[%clk 0:00:03.4]} 34... Nxe3 {[%clk 0:00:19.8]}
35. fxe3 {[%clk 0:00:05.3]} 35... Qxe3+ {[%clk 0:00:16.7]} 36. Kh1 {[%clk
0:00:06.7]} 36... Rc1 {[%clk 0:00:16.2]} 37. Rb1 {[%clk 0:00:07.5]} 37... Rxb1
{[%clk 0:00:16.6]} 38. Rxb1 {[%clk 0:00:08.8]} 38... Qd4 {[%clk 0:00:16.7]} 39.
Rf1 {[%clk 0:00:09.7]} 39... Bd5 {[%clk 0:00:17.6]} 40. Qb5 {[%clk 0:00:07.7]}
40... Rd8 {[%clk 0:00:17.8]} 41. Qxb4 {[%clk 0:00:08.6]} 41... Bxc4 {[%clk
0:00:18.4]} 42. Qxc4 {[%clk 0:00:09.9]} 42... Qxc4 {[%clk 0:00:19.2]} 43. bxc4
{[%clk 0:00:11.8]} 43... f5 {[%clk 0:00:20.4]} 44. Ra1 {[%clk 0:00:11.9]} 44...
e3 {[%clk 0:00:21]} 45. a5 {[%clk 0:00:13.3]} 45... e2 {[%clk 0:00:21.4]} 46.
Kh2 {[%clk 0:00:14.8]} 46... Rd1 {[%clk 0:00:22.4]} 0-1

[Event "*** Titled Tuesday 3|2 Blitz (Late)"]
[Site "Chess.com"]
[Date "2017.01.03"]
[Round "7"]
[White "VerdeNotte"]
[Black "Gordima"]
[Result "0-1"]
[WhiteElo "2479"]
[BlackElo "2491"]
[TimeControl "180+2"]
[EndTime "18:25:51 PST"]
[Termination "Gordima won by resignation"]

1. g3 {[%clk 0:03:02]} 1... Nf6 {[%clk 0:02:58.3]} 2. Bg2 {[%clk 0:03:02.9]}
2... g6 {[%clk 0:02:58.3]} 3. e4 {[%clk 0:03:03.9]} 3... d6 {[%clk 0:02:55.2]}
4. d4 {[%clk 0:03:04.4]} 4... Bg7 {[%clk 0:02:56.4]} 5. Ne2 {[%clk 0:03:05.7]}
5... O-O {[%clk 0:02:57.6]} 6. O-O {[%clk 0:03:05.9]} 6... c5 {[%clk 0:02:54.1]}
7. Nbc3 {[%clk 0:03:05.4]} 7... cxd4 {[%clk 0:02:52.7]} 8. Nxd4 {[%clk
0:03:06.6]} 8... Nc6 {[%clk 0:02:54.4]} 9. Nxc6 {[%clk 0:03:07.3]} 9... bxc6
{[%clk 0:02:55.5]} 10. e5 {[%clk 0:03:08.7]} 10... dxe5 {[%clk 0:02:56.8]} 11.
Bxc6 {[%clk 0:03:09]} 11... Rb8 {[%clk 0:02:55.6]} 12. Qxd8 {[%clk 0:03:02]}
12... Rxd8 {[%clk 0:02:57.5]} 13. b3 {[%clk 0:02:58.1]} 13... Bh3 {[%clk
0:02:56.4]} 14. Bg2 {[%clk 0:02:57.4]} 14... Bf5 {[%clk 0:02:40.9]} 15. Be3
{[%clk 0:02:54.3]} 15... Rbc8 {[%clk 0:02:34.1]} 16. Na4 {[%clk 0:02:46.8]}
16... Bxc2 {[%clk 0:02:22.4]} 17. Bxa7 {[%clk 0:02:46.1]} 17... e4 {[%clk
0:02:16]} 18. Bb6 {[%clk 0:02:38.3]} 18... Rd6 {[%clk 0:02:12.4]} 19. Rac1
{[%clk 0:02:34.8]} 19... Rdc6 {[%clk 0:02:00.8]} 20. Bd4 {[%clk 0:02:11.4]}
20... Bh6 {[%clk 0:01:56.8]} 21. Be3 {[%clk 0:02:11.2]} 21... Bxe3 {[%clk
0:01:57.3]} 22. fxe3 {[%clk 0:02:12.3]} 22... Nd5 {[%clk 0:01:57.9]} 23. Rxc2
{[%clk 0:02:01.7]} 23... Rxc2 {[%clk 0:01:55]} 24. Bxe4 {[%clk 0:02:02.9]} 24...
Nxe3 {[%clk 0:01:47.6]} 25. Bxc2 {[%clk 0:01:53.6]} 25... Nxf1 {[%clk
0:01:48.7]} 26. Bd3 {[%clk 0:01:52.6]} 26... Ne3 {[%clk 0:01:46.3]} 27. Kf2
{[%clk 0:01:42.8]} 27... Nd5 {[%clk 0:01:42.3]} 28. Bc4 {[%clk 0:01:38.5]} 28...
Nb4 {[%clk 0:01:43.3]} 29. Nc3 {[%clk 0:01:23.6]} 29... Ra8 {[%clk 0:01:42.4]}
30. a4 {[%clk 0:01:23.8]} 30... Kf8 {[%clk 0:01:43]} 31. Nd5 {[%clk 0:01:23.3]}
31... Nxd5 {[%clk 0:01:31.1]} 32. Bxd5 {[%clk 0:01:24.4]} 32... Ra5 {[%clk
0:01:24.1]} 33. Bc6 {[%clk 0:01:22]} 33... Rc5 {[%clk 0:01:20.1]} 34. Be4 {[%clk
0:01:01.6]} 34... f5 {[%clk 0:00:57.9]} 35. Bd3 {[%clk 0:01:02.7]} 35... Rc3
{[%clk 0:00:54.4]} 36. Bc4 {[%clk 0:01:01.5]} 36... Rc2+ {[%clk 0:00:53.9]} 37.
Ke3 {[%clk 0:01:02.4]} 37... e5 {[%clk 0:00:37.2]} 38. a5 {[%clk 0:01:01.3]}
38... Ra2 {[%clk 0:00:37.8]} 39. a6 {[%clk 0:00:59]} 39... Ke7 {[%clk
0:00:38.9]} 40. b4 {[%clk 0:00:38.5]} 40... Ra3+ {[%clk 0:00:38.7]} 41. Kd2
{[%clk 0:00:39.4]} 41... Kd6 {[%clk 0:00:37.8]} 42. Kc2 {[%clk 0:00:38.8]} 42...
Kc7 {[%clk 0:00:34.1]} 43. Kb2 {[%clk 0:00:38.4]} 43... Re3 {[%clk 0:00:32]} 44.
Bg8 {[%clk 0:00:38.4]} 44... Re2+ {[%clk 0:00:30.9]} 45. Kc3 {[%clk 0:00:39.2]}
45... Rxh2 {[%clk 0:00:31.3]} 46. Kc4 {[%clk 0:00:40.7]} 46... Kb6 {[%clk
0:00:32.1]} 47. b5 {[%clk 0:00:40.2]} 47... e4 {[%clk 0:00:31.9]} 48. Kd4 {[%clk
0:00:37.1]} 48... Rg2 {[%clk 0:00:27.4]} 49. Bxh7 {[%clk 0:00:26]} 49... Rxg3
{[%clk 0:00:28.3]} 50. Bg8 {[%clk 0:00:21]} 50... Rd3+ {[%clk 0:00:28.5]} 51.
Kc4 {[%clk 0:00:20]} 51... Rd6 {[%clk 0:00:29]} 52. Bd5 {[%clk 0:00:18.2]} 52...
e3 {[%clk 0:00:28.8]} 53. Bf3 {[%clk 0:00:18.9]} 53... g5 {[%clk 0:00:27.2]} 54.
a7 {[%clk 0:00:16.9]} 54... Kxa7 {[%clk 0:00:27.8]} 55. Kc5 {[%clk 0:00:18.8]}
55... Rd8 {[%clk 0:00:26.3]} 56. Kc6 {[%clk 0:00:18.8]} 56... Kb8 {[%clk
0:00:27.5]} 0-1